Cogmind - Beta 16 @@@ ROGUE MODE // 2025.12.05 @ 11:07:24 Player: Jiber Result: Destroyed by Y-45 Defender with Heavy Assault Rifle Performance ------------- Evolutions (1) 500 Regions Visited (3) 600 Robots Destroyed (13) 65 Value Destroyed (386) 386 Prototype IDs (4) 80 Alien Tech Used (0) 0 Bonus (0) 0 TOTAL SCORE: 1631 Bonus ------- None Cogmind --------- Core Integrity 0/400 Matter 255/300 Energy 29/100 System Corruption 2% Temperature Cool (99) Movement Walking (120) Location -9/Storage Parts ------- > --- POWER (1) -------- (None) > --- PROPULSION (2) --- Aluminum Leg Aluminum Leg > --- UTILITY (3) ------ Signal Interpreter Light Armor Plating > --- WEAPON (3) ------- (None) > --- INVENTORY (5) ---- (None) Peak State ------------ > --- POWER ------------ Ion Engine > --- PROPULSION ------- Aluminum Leg Aluminum Leg > --- UTILITY ---------- Small Storage Unit Structural Scanner > --- WEAPON ----------- EM Pulse Gun Particle Gun Light Cannon > --- INVENTORY -------- Aluminum Leg Aluminum Leg Signal Interpreter Light Armor Plating Beam Cannon Light Assault Rifle [Rating: 9] Favorites ----------- Power Ion Engine Engine Ion Engine Propulsion Aluminum Leg Leg Aluminum Leg Utility Small Storage Unit Device Structural Scanner Storage Small Storage Unit Processor Signal Interpreter Protection Light Armor Plating Weapon Light Assault Rifle Energy Gun EM Pulse Gun Energy Cannon Beam Cannon Ballistic Gun Light Assault Rifle Ballistic Cannon Light Cannon Build | -11 -10 -9 -9 ------- Run | Yrd Mat Mat Sto Slots Evolved 2 | . . 2 . Power . | . . . . Propulsion . | . . . . Utility 1 | . . 1 . Weapon 1 | . . 1 . Parts Attached 19 | 6 8 1 4 Power 2 | 1 1 . . Engine 2 | 1 1 . . Core . | . . . . Reactor . | . . . . Propulsion 8 | 2 4 . 2 Treads . | . . . . Leg 8 | 2 4 . 2 Wheel . | . . . . Hover . | . . . . Flight . | . . . . Utility 4 | 1 1 . 2 Device 1 | . 1 . . Storage 1 | 1 . . . Processor 1 | . . . 1 Hackware . | . . . . Protection 1 | . . . 1 Artifact . | . . . . Weapon 5 | 2 2 1 . Energy Gun 2 | 1 1 . . Energy Cannon 1 | . 1 . . Ballistic Gun 1 | 1 . . . Ballistic Cannon 1 | . . 1 . Launcher . | . . . . Special Weapon . | . . . . Impact Weapon . | . . . . Slashing Weapon . | . . . . Piercing Weapon . | . . . . Special Melee Weapon . | . . . . Unidentified Prototypes . | . . . . Parts Lost 9 | . 1 7 1 Power 2 | . 1 1 . Propulsion 2 | . . 2 . Utility 1 | . . 1 . Weapon 4 | . . 3 1 Highest Loss Streak 4 | . 1 4 1 To Critical Strikes . | . . . . Average Backups 4 | 2 4 5 1 Power . | . . . . Propulsion 1 | . 2 2 . Utility 1 | . 1 2 . Weapon 1 | 1 1 1 . Tool/Special . | . . . . Unused Backups 1 | . 1 . . Power . | . . . . Propulsion 1 | . 1 . . Utility . | . . . . Weapon . | . . . . Tool/Special . | . . . . Average Slot Usage (%) 78 | . 98 57 37 Engine 8 | . 13 4 . Leg 22 | . 28 15 15 Device 10 | . 13 8 . Storage 11 | . 14 10 . Energy Gun 7 | . 6 11 . Energy Cannon 5 | . 8 . 8 Ballistic Gun 7 | . 12 . . Ballistic Cannon 2 | . . 8 . Peak Build Rating 9 | 6 8 9 5 Average Rating 6 | 2 7 5 3 On Entrance 3 | . 6 8 . Avg Prop Armor Cover (%) . | . . . . Naked Turns 25 | . . 21 4 Heaviest Build 19 | 13 16 19 6 Greatest Support 20 | 20 20 20 20 Greatest Overweight (x) 1 | . . 1 . Average Overweight (x) . | . . . . Largest Inventory Capacity 8 | 8 8 8 5 Average Capacity 7 | 6 8 7 5 Most Carried 8 | 5 8 6 5 Average Carried 4 | 2 4 5 1 Final Capacity 8 | 8 8 5 5 Final Carried 7 | . 7 5 . Class Distribution -------------------- 82% | Mutant 11% | Scavenger-Skirmisher 5% | Scavenger-Mutant Dominant Class ---------------- Mutant | -10/Materials Mutant | -9/Materials Mutant | -9/Storage Resources | -11 -10 -9 -9 ----------- Run | Yrd Mat Mat Sto Matter Collected 389 | 235 135 19 . Remotely . | . . . . Salvage Created 550 | . 531 19 . Parts 27 | . 26 1 . Haulers Intercepted . | . . . . Recyclers Shooed . | . . . . Parts Field Recycled . | . . . . Retrieved Matter . | . . . . Parts Self-Destructed . | . . . . Prevented . | . . . . Parts Restored . | . . . . Kills | -11 -10 -9 -9 ------- Run | Yrd Mat Mat Sto Combat Hostiles Destroyed 10 | . 10 . . Guns 3 | . 3 . . Cannons 7 | . 7 . . Classes Destroyed 4 | . 3 1 . Worker 1 | . . 1 . Recycler 1 | . 1 . . Operator 1 | . 1 . . Grunt 10 | . 10 . . Best Kill Streak 4 | . 4 1 . Combat Bots Only 3 | . 3 . . Max Kills in Single Turn 1 | . 1 1 . Gunslinging . | . . . . Exploded . | . . . . Melee . | . . . . Uniques/NPCs Destroyed . | . . . . Combat | -11 -10 -9 -9 -------- Run | Yrd Mat Mat Sto Hostile Shots Fired 180 | . 72 96 12 Missed 64 | . 23 37 4 Hits 116 | . 49 59 8 Projectile 116 | . 49 59 8 Critical Strikes 3 | . . 2 1 Damage Taken 1495 | . 565 793 137 Core 528 | . 117 316 95 Absorbed by Shields . | . . . . Core Remaining (%) 76 | 100 53 . . Volleys Fired 75 | 1 51 6 17 Largest 3 | 2 2 3 1 Hottest 135 | 60 105 135 60 Shots Fired 131 | 2 102 10 17 Gun 67 | 2 61 4 . Cannon 64 | . 41 6 17 Launcher . | . . . . Special . | . . . . Kinetic 51 | 1 44 6 . Thermal 68 | . 48 3 17 Explosive . | . . . . Electromagnetic 12 | 1 10 1 . Robot Hit Streak 7 | . 7 2 3 Robot Miss Streak 5 | . 5 1 3 Penetration Max . | . . . . Secondary Targets . | . . . . Shots Hit Robots 60 | . 51 5 4 Core Hits 24 | 1 20 3 . Critical Kills . | . . . . Critical Parts Destroyed . | . . . . Critical Strikes . | . . . . Melee Attacks . | . . . . Impact . | . . . . Slashing . | . . . . Piercing . | . . . . Sneak Attacks . | . . . . Combat Hostiles . | . . . . Follow-up Attacks . | . . . . Damage Inflicted 924 | 6 712 136 70 Guns 390 | 6 370 14 . Cannons 493 | . 334 89 70 Explosions . | . . . . Melee . | . . . . Ramming 41 | . 8 33 . Kinetic 269 | 6 174 89 . Thermal 521 | . 437 14 70 Explosive . | . . . . Electromagnetic 93 | . 93 . . Impact . | . . . . Slashing . | . . . . Piercing . | . . . . Highest Corruption 2 | . . 2 2 Average Corruption 2 | . . 2 2 Corruption Purged . | . . . . Corruption Blocked . | . . . . Effects 1 | . . . 1 Heat Flow Errors 1 | . . . 1 Overload Shots . | . . . . Overflow Damage 8 | . 1 . 7 Projectiles 8 | . 1 . 7 Explosions . | . . . . Melee . | . . . . Knockbacks 1 | . . 1 . Impact 1 | . . 1 . Kinetic . | . . . . Secondary . | . . . . Self-Inflicted Damage 15 | . . 15 . Shots . | . . . . Rammed 9 | . . 9 . Targets Rammed 11 | . 1 10 . Kicked 2 | . 1 1 . Crushed . | . . . . Highest Temperature 404 | 20 404 66 206 Average Temperature 110 | 15 122 21 83 Received Heat Transfer 642 | . 285 312 45 Siege Activations . | . . . . Martial Activations . | . . . . Shielding Activations . | . . . . Robots Disrupted . | . . . . Combat Hostiles . | . . . . Robots Corrupted . | . . . . Combat Hostiles . | . . . . Parts Fried . | . . . . Impact Corruptions . | . . . . Robots Melted . | . . . . Combat Hostiles . | . . . . Parts Melted . | . . . . Heat Transferred 1110 | . 925 37 148 Parts Sabotaged . | . . . . Parts Stolen . | . . . . Parts Stripped . | . . . . Power Chain Reactions . | . . . . Alert | -11 -10 -9 -9 ------- Run | Yrd Mat Mat Sto Maximum Alert Level . | . . . . Low Security (%) 100 | 100 100 100 100 Level 1 . | . . . . Level 2 . | . . . . Level 3 . | . . . . Level 4 . | . . . . Level 5 . | . . . . High Security . | . . . . Max Security . | . . . . Peak Influence 100 | . 100 70 50 Initial 35 | . . 35 35 Average 22 | . 27 14 35 Influence Increases 455 | . 285 155 15 Destroy 0b10 Robot/C 200 | . 200 . . Destroy 0b10 Robot/NC 15 | . 10 5 . Destroy Leader 40 | . 40 . . Successful Hack 5 | . 5 . . Disable Machine 15 | . . . 15 Lose Combat Pursuer 180 | . 30 150 . Influence Decreases 445 | . 201 154 90 Entered New Map 99 | . . 49 50 Time Decay 301 | . 191 80 30 Lost Part 45 | . 10 25 10 Squads Dispatched 7 | . 4 2 1 Investigation 2 | . 2 . . Extermination . | . . . . Reinforcement 5 | . 2 2 1 Assault . | . . . . Garrison . | . . . . Intercept . | . . . . Searches Triggered . | . . . . Construction Impeded . | . . . . Haulers Reinforced . | . . . . Active Scanning Responses . | . . . . Cargo Convoy Interrupts . | . . . . Stealth | -11 -10 -9 -9 --------- Run | Yrd Mat Mat Sto Distress Signals 5 | . 2 3 . Communications Jammed . | . . . . Distress Signals . | . . . . Times Spotted 43 | . 20 20 3 Peak Tracking Total 10 | . 5 10 2 Tactical Retreats 6 | . 2 4 . Traps | -11 -10 -9 -9 ------- Run | Yrd Mat Mat Sto Traps Triggered 3 | . 2 . 1 Indirectly . | . . . . Trap Hack Attempts . | . . . . Triggered . | . . . . Disarmed . | . . . . Reprogrammed . | . . . . Reused . | . . . . Traps Extracted . | . . . . Installed . | . . . . Triggered . | . . . . Machines | -11 -10 -9 -9 ---------- Run | Yrd Mat Mat Sto Machines Disabled 1 | . . . 1 Max in Single Turn 1 | . . . 1 Machines Repaired . | . . . . Machines Dismantled . | . . . . Machines Sabotaged . | . . . . Overloaded Fab Kills . | . . . . Hacking | -11 -10 -9 -9 --------- Run | Yrd Mat Mat Sto Machines Accessed 3 | . 1 2 . Terminals 3 | . 1 2 . Fabricators . | . . . . Repair Stations . | . . . . Recycling Units . | . . . . Scanalyzers . | . . . . Garrison Access . | . . . . Total Hacks 9 | . 4 5 . Successful 4 | . 1 3 . Failed 5 | . 3 2 . Catastrophic . | . . . . Database Lockouts . | . . . . Manual 1 | . . 1 . Terminals 9 | . 4 5 . Fabricators . | . . . . Repair Stations . | . . . . Recycling Units . | . . . . Scanalyzers . | . . . . Garrison Access . | . . . . Terminal Hacks 3 | . 1 2 . Prototype ID Bank 2 | . 1 1 . Locate Traps 1 | . . 1 . Fabricator Hacks . | . . . . Repair Station Hacks . | . . . . Recycling Unit Hacks . | . . . . Scanalyzer . | . . . . Garrison Access Hacks . | . . . . Unauthorized Hacks 1 | . . 1 . Terminals 1 | . . 1 . Assimilate 1 | . . 1 . Fabricators . | . . . . Repair Stations . | . . . . Recycling Units . | . . . . Scanalyzers . | . . . . Garrison Access . | . . . . Data Cores Recovered . | . . . . Used . | . . . . Hacking Detections 2 | . . 2 . Full Trace Events . | . . . . Feedback Events . | . . . . Feedback Blocked . | . . . . Robot Schematics Acquired . | . . . . Robots Built . | . . . . Authchips . | . . . . Time . | . . . . Total Robot Build Rating . | . . . . Part Schematics Acquired . | . . . . Parts Built . | . . . . Authchips . | . . . . Time . | . . . . Total Part Build Rating . | . . . . Part Studies Acquired . | . . . . Parts Repaired . | . . . . Time . | . . . . Parts Recycled . | . . . . Recycled Matter . | . . . . Retrieved Matter . | . . . . Retrieved Components . | . . . . Parts Scanalyzed . | . . . . Part Schematics Acquired . | . . . . Parts Damaged . | . . . . Bothacking | -11 -10 -9 -9 ------------ Run | Yrd Mat Mat Sto Used RIF Installer . | . . . . Robots Hacked . | . . . . Non-combat . | . . . . Combat . | . . . . Robot Hacks Applied . | . . . . Relay Couplers Released . | . . . . Fabnet Peak Effective % . | . . . . Robots Rewired . | . . . . Allies Hacked . | . . . . Hacks Repelled . | . . . . Allies | -11 -10 -9 -9 -------- Run | Yrd Mat Mat Sto Total Allies . | . . . . Largest Group . | . . . . Highest-Rated Group . | . . . . Highest-Rated Ally . | . . . . Total Orders . | . . . . Ally Attacks . | . . . . Total Damage . | . . . . Kills . | . . . . Allies Corrupted . | . . . . Allies Melted . | . . . . Intel | -11 -10 -9 -9 ------- Run | Yrd Mat Mat Sto Active Infowar (turns) 723 | . 500 223 . Structural 723 | . 500 223 . Robot Analysis Total . | . . . . Derelict Logs Recovered . | . . . . Drone Launches . | . . . . Drone Recoveries . | . . . . Exploration | -11 -10 -9 -9 ------------- Run | Yrd Mat Mat Sto Turns Passed 949 | 54 522 306 67 Spaces Moved 584 | 42 272 242 28 Core 88 | 14 . 66 8 Treads . | . . . . Legs 496 | 28 272 176 20 Wheels . | . . . . Hover . | . . . . Flight . | . . . . Fastest Speed 50 | 50 120 50 50 Average Speed 115 | 96 120 114 100 Slowest Speed 190 | 120 120 190 120 Overloaded Moves . | . . . . Propulsion Burnouts . | . . . . Robots Hopped . | . . . . Potential Cave-ins . | . . . . Cave-ins Triggered . | . . . . Exploration Rate (%) 28 | 3 64 36 9 Regions Visited 3 Branch Regions 1 Pre-discovered Areas . | . . . . Known Exits Taken . | . . . . Unknown Exits Taken 3 | 1 1 1 . Scrap Searched . | . . . . Spaces Dug . | . . . . Terrain Destroyed . | . . . . Melee . | . . . . Projectile . | . . . . AOE . | . . . . Terrain Rammed . | . . . . Walls Destroyed . | . . . . Machines Disabled . | . . . . Actions | -11 -10 -9 -9 --------- Run | Yrd Mat Mat Sto Total 736 | 53 373 260 50 Wait 25 | . 25 . . Move 581 | 41 271 241 28 Hop . | . . . . Pick Up 16 | 5 11 . . Fast Attach 2 | 1 1 . . Attach 12 | 5 1 1 5 Detach . | . . . . Swap 7 | . 7 . . Drop 7 | . 5 2 . Fire 75 | 1 51 6 17 Melee . | . . . . Ram 9 | . . 9 . Kick 2 | . 1 1 . Crush . | . . . . Escape Stasis . | . . . . Rewire . | . . . . Trap . | . . . . Miscellaneous . | . . . . Route ------- -11/Scrapyard -10/Materials (discovered 2 exits: *Mat x2) -9/Materials -9/Storage History --------- Turn | Location | Event 10 | -11/Scrapyard | Discovered new exit (range 16) 55 | -11/Scrapyard | Entered Materials 289 | -10/Materials | Discovered new exit (range 16) 312 | -10/Materials | Build established: Mutant 490 | -10/Materials | Discovered new exit (range 15) 577 | -10/Materials | Entered another Materials area 577 | -9/Materials | Evolved 2 slots: Utility x1, Weapon x1 825 | -9/Materials | Core integrity fell below 50% 851 | -9/Materials | Lost 4 parts (1n1u2w) 871 | -9/Materials | Discovered new exit (range 10) 883 | -9/Materials | Entered Storage 899 | -9/Storage | Core integrity fell below 20% 950 | -9/Storage | Destroyed by Y-45 Defender with Heavy Assault Rifle Last Messages --------------- GOAL=ESCAPE 00884_ O-16 Technician: "IFF HANDSHAKE FAILED. SECURING TERMINAL." 00888_ Destroyed Datajack. 00891_ Component Storage disabled. 00893_ O-16 Technician uses terminal to summon reinforcements. 00893_ ALERT: Hostiles spotted, dispatching reinforcements to Terminal S016. 00893_ O-16 Technician locks terminal. 00898_ Triggered Explosive Trap. 00898_ An explosion rips through the floor. 00906_ Connecting with Terminal... 00906_ Current location identified: Storage 00928_ U-05 Engineer builds a Door. 00929_ System corrupted: Heat flow error (+136). 00933_ U-05 Engineer builds a Wall. 00937_ U-05 Engineer lays Concrete. 00947_ Beam Cannon destroyed. 00950_ Critical hit (Burn: +37). Map ----- +----------------------------------------------------+ | | | | | | | | | | | | | | | | | | | | | | | | | | | | | ??????????????????????????????????????????? | | ??????????????????????????????????????????? | | ??????????????????????????????????????????? | | ??????????????????????????????????????????? | | ??????????????????????????????????????????? | | ??????????????????????????????????????????? | | ????????????????#######???????????????????? | | ??????########### #???????????????????? | | ??????# #???????????????????? | | ??????# " #???????????????????? | | ??????# #???????????????????? | | ?????#### #+#### @ #???????????????????? | | ?????# ###Y ##???????????????????? | | ?????# "" ""# #????????????????????? | | ?????# "" ""# #????????????????????? | | ?????# "" T"# #????????????????????? | | ?????# "" ""# #????????????????????? | | ?????#^""" "T" ""# #????????????????????? | | ?????# """ ### #????????????????????? | | ?????# #?# #????????????????????? | | ?????#####"T"###?# #????????????????????? | | ?????????#####???? #????????????????????? | | ?????????????????? ????????????????????? | | ?????????????????? Y ????????????????????? | | ?????????????????? ????????????????????? | | ?????????????????? ????????????????????? | | ?????????????????? #???????????????????? | | ??????????????????#+#?????????????????????? | | ??????????????????????????????????????????? | | ??????????????????????????????????????????? | | ??????????????????????????????????????????? | | ??????????????????????????????????????????? | | ??????????????????????????????????????????? | | ??????????????????????????????????????????? | | ??????????????????????????????????????????? | | ??????????????????????????????????????????? | +----------------------------------------------------+ Best States ------------- Heat Dissipation 28 Energy Generation 10 Energy Capacity 250 Matter Stores 300 Matter Capacity 300 Sight Range 16 Terrain Scan Density 10 Armor Coverage 150 Evasion (%) 55 Item Schematics ----------------- None Robot Schematics ------------------ None Fabricated ------------ Nothing Repaired ---------- Nothing Studied --------- None Alien Tech Used ----------------- None Achievements -------------- None Challenges ------------ None Game ------ Seed MachineLatentMegatreads Manual? 0 Play Time 00:11:03 Cumulative 37.4 hours Start 2025.12.05 @ 10:57:17 End 2025.12.05 @ 11:07:24 Sessions 1 Manual Loads 0 Difficulty Rogue Special Mode None Game No. 48 Rogue 48 Adventurer 0 Explorer 0 Win Type - Total 0 Types 0/0/0/0/0/0/0/0/0/0 Lore% 17 Gallery% 32 Achievement% 20 Wizard Run 0 Options --------- Layout 1 ASCII 0 Keyboard 0 Movement Mouse Keybinds 0 Fullscreen 2 Font 32/SmallcapsGlow Map View 50x35 Zoom Use 0% Tactical HUD 1 Map Filters NONE Filters NONE Steam 1 RUN: 69aaf392-216c-40b6-9fb8-60669d95394a